[Event "28th Bosnjaci Open 2024"]
[Site "Bosnjaci"]
[Date "2024.01.09"]
[Round "9.14"]
[White "Rosic, Slavko S"]
[Black "Begic, Domagoj"]
[Result "0-1"]
[ECO "B07"]
[WhiteElo "2231"]
[BlackElo "2052"]
[Annotator "TA"]
[PlyCount "50"]
[EventDate "2024.01.02"]
[EventType "swiss"]
[EventCountry "CRO"]
[SourceTitle "playchess.com"]
[Source "ChessBase"]
[SourceQuality "1"]
[TimeControl "5400+30"]

{[%evp 14,50,4,0,8,-22,18,-31,-16,-23,-26,-28,-20,-30,0,-116,-113,-117,-114,-97,-116,-102,-109,-233,-231,-487,-470,-493,-502,-826,-820,-883,-860,-29993,-1029,-29994,-29995,-29996,-29997]} 1. e4 {[%emt 0:00:03]} d6 {[%emt 0:02:12]} 2. d4 {[%emt 0:00:09]} Nf6 {[%emt 0:00:07]} 3. Nc3 {[%emt 0:00:07]} c6 {[%emt 0:00:13]} 4. f4 {[%emt 0:00:13]} Qa5 {[%emt 0:04:06]} 5. Bd3 {[%emt 0:02:11]} e5 {[%emt 0:03:46]} 6. dxe5 {[%emt 0:03:36]} dxe5 {[%emt 0:00:14]} 7. f5 {[%emt 0:00:00]} b5 {[%emt 0:03:37]} 8. Nf3 {[%emt 0:00:51]} Nbd7 {[%emt 0:01:31][%cal Bb8d7,Bd7b6,Bb6d5,Bd5b4][%mdl 32]} 9. Be3 {[%emt 0:01:06]} b4 {[%emt 0:00:34]} 10. Ne2 {[%emt 0:00:09]} (10. Nb1 $11 {sieht stärker aus.}) 10... Bc5 $15 {[%emt 0:03:11] Schwarz steht etwas besser.} 11. Bxc5 {[%emt 0:00:59]} Qxc5 {[%emt 0:00:14]} ({Jedoch nicht} 11... Nxc5 12. Ng3 $15) 12. h3 {[%emt 0:00:07] Gegen Ng4 gerichtet.} O-O {[%emt 0:04:52]} 13. Qd2 {[%emt 0:00:09]} Nb6 {[%emt 0:00:17]} 14. b3 {[%emt 0:00:28] [#] Es drohte Nc4} (14. a3 $11) 14... Bxf5 $1 $17 {[%emt 0:01:34][%mdl 512]} 15. exf5 {[%emt 0:19:08][%cal Oa2a3]} e4 {[%emt 0:00:05]} 16. Bxe4 {[%emt 0:09:36]} Nxe4 {[%emt 0:00:44]} 17. Qd4 {[%emt 0:00:04]} Qxf5 {[%emt 0:12:40] Weiss muss nun ...c5 beachten.} 18. Qxb4 {[%emt 0:00:10]} (18. O-O $17 {war einen Versuch wert.}) 18... Nd5 {[%emt 0:00:11]} 19. Qd4 {[%emt 0:15:16]} (19. Qa5) 19... c5 $19 {[%emt 0:01:10]} 20. Qd3 {[%emt 0:01:24]} Nb4 {[%emt 0:00:06]} 21. Qd1 {[%emt 0:10:09]} (21. Qc4 $142 Nd6 22. Qg4 Nxc2+ 23. Kd2 Nxa1 24. Qxf5 Nxb3+ (24... Nxf5 $2 25. Rxa1 Rfe8 26. Rc1 $19) 25. axb3 Nxf5 26. Re1) 21... Rad8 {[%emt 0:02:58]} 22. Qc1 {[%emt 0:00:06] [#]} Rd2 $3 {[%emt 0:03:19][%mdl 512]} 23. Nxd2 {[%emt 0:04:09]} (23. O-O Rxe2) 23... Qf2+ {[%emt 0:54:19]} 24. Kd1 {[%emt 0:00:05]} Rd8 {[%emt 0:00:00]} 25. a3 {[%emt 0:10:34]} Qe3 {[%emt 0:00:00] Weiß schien mit der Eröffnung nicht zurechtzukommen.   Gewichteter Fehlerwert: Weiß=0.92/Schwarz=0.04 (makellos) .  Fehler:       	Weiß=5     	---        Ungenau:       	Weiß=1     	Schwarz=2     OK:         	Weiß=3     	Schwarz=4     Bester:       	Weiß=1     	Schwarz=3     Brilliant:      	---       	Schwarz=1} (25... Rxd2+ $2 26. Qxd2 Nxd2 27. Kxd2 Nxc2 28. Kxc2 $19) 0-1

[Event "28th Bosnjaci Open 2024"]
[Site "Bosnjaci"]
[Date "2024.01.09"]
[Round "9.15"]
[White "Starcevic, Ante Leon"]
[Black "Kejzar, Petra"]
[Result "1/2-1/2"]
[ECO "D02"]
[WhiteElo "2209"]
[BlackElo "2025"]
[Annotator "TA"]
[PlyCount "36"]
[EventDate "2024.01.02"]
[EventType "swiss"]
[EventCountry "CRO"]
[SourceTitle "playchess.com"]
[Source "ChessBase"]
[SourceQuality "1"]
[TimeControl "5400+30"]

{[%evp 15,36,-13,-4,-28,-26,-61,26,-85,-82,-67,-77,-75,-84,-114,-46,-29,-35,-37,-49,-32,0,-4,0]} 1. d4 {[%emt 0:05:00]} Nf6 {[%emt 0:00:06]} 2. Nf3 {[%emt 0:00:15]} e6 {[%emt 0:00:13]} 3. Bf4 {[%emt 0:00:07]} d5 {[%emt 0:00:28]} 4. e3 {[%emt 0:00:05]} c5 {[%emt 0:00:43]} 5. Nbd2 {[%emt 0:00:36]} Bd6 {[%emt 0:01:26]} 6. Bg3 {[%emt 0:00:18]} Qc7 {[%emt 0:00:47]} 7. c3 {[%emt 0:03:17]} Nbd7 {[%emt 0:00:25]} 8. Bd3 {[%emt 0:00:19]} O-O {[%emt 0:00:56]} 9. Qe2 {[%emt 0:00:11] D02: 1 d4 d5 2 Nf3 sidelines, including 2...Nf6 3 g3 and 2...Nf6 3 Bf4.} e5 {[%emt 0:02:03]} 10. e4 {[%emt 0:04:50]} dxe4 {[%emt 0:08:36] [#]} (10... cxd4 $15 11. cxd4 dxe4 12. Nxe4 Nxe4 13. Bxe4 (13. Qxe4 Nf6 $17) 13... exd4) 11. Bxe4 $146 {[%emt 0:05:37]} (11. Nxe4 $11 {was the only way to keep the balance.} Nxe4 12. dxe5 (12. Qxe4 $2 Nf6 $19) 12... Nxg3 13. hxg3) ({Predecessor:} 11. Nxe4 Nxe4 12. dxe5 Nxg3 13. hxg3 Re8 14. Bxh7+ Kf8 15. Bc2 Bxe5 16. Kf1 g6 17. Re1 {1-0 Liu,C (2107)-Sigeman,J (2146) Helsingor Hojstrupgaard op 2021 (5)}) 11... exd4 $17 {[%emt 0:03:09]} 12. cxd4 {[%emt 0:08:07]} Re8 {[%emt 0:10:58] White must now prevent ...cxd4.} 13. O-O {[%emt 0:08:55]} Bxg3 {[%emt 0:10:35]} 14. hxg3 {[%emt 0:00:15] [#]} cxd4 {[%emt 0:02:52]} (14... c4 $1 $17 {aiming for ...Nxe4.} 15. Nh4 (15. Qxc4 $2 Qxc4 16. Bxh7+ Nxh7 $19) 15... Nb6) 15. Rfe1 $15 {[%emt 0:11:47]} ({Much worse is} 15. Nxd4 Nc5 16. f3 Qxg3 $19) 15... Nc5 {[%emt 0:19:32]} 16. Qc4 {[%emt 0:02:49]} Be6 {[%emt 0:02:33]} ({Of course not} 16... Nfxe4 17. Nxe4 (17. Qxd4 $2 {too greedy.} Bf5 $19) 17... Ne6 18. Qxc7 Nxc7 19. Nxd4 $11) 17. Qxd4 {[%emt 0:03:22] Rac1 would be deadly.} Ncxe4 {[%emt 0:05:07]} 18. Nxe4 {[%emt 0:01:11]} Nxe4 {[%emt 0:00:23] Weighted Error Value: White=0.30/Black=0.19 (very precise)} 1/2-1/2

[Event "28th Bosnjaci Open 2024"]
[Site "Bosnjaci"]
[Date "2024.01.09"]
[Round "9.16"]
[White "Goric, Esad"]
[Black "Petricevic, Mateo"]
[Result "1/2-1/2"]
[ECO "A06"]
[WhiteElo "2196"]
[BlackElo "2019"]
[Annotator "TA"]
[PlyCount "164"]
[EventDate "2024.01.02"]
[EventType "swiss"]
[EventCountry "CRO"]
[SourceTitle "playchess.com"]
[Source "ChessBase"]
[SourceQuality "1"]
[TimeControl "5400+30"]

{[%evp 9,164,1,8,3,14,1,50,29,22,14,35,43,43,37,32,39,46,32,52,50,49,42,50,38,56,35,58,0,53,25,64,31,39,27,31,15,27,-22,19,21,12,7,21,21,28,6,7,6,6,6,7,7,7,7,26,7,26,7,26,26,26,26,26,7,26,26,26,26,26,7,26,0,0,0,26,0,26,26,26,26,26,26,26,26,26,26,64,13,26,-343,0,0,0,0,0,0,0,0,0,0,0,0,0,0,0,0,0,0,11,85,6054,8,8,0,168,0,0,0,0,0,0,0,0,0,0,0,0,0,0,0,0,0,0,0,0,0,0,0,0,0,0,0,0,0,0,0,0,0,0,0,0,0,0,0,0,0,0]} 1. Nf3 {[%emt 0:00:30]} Nf6 {[%emt 0:07:46]} 2. b3 {[%emt 0:00:12]} d5 {[%emt 0:00:08]} 3. Bb2 {[%emt 0:00:09]} Bf5 {[%emt 0:00:16]} 4. e3 {[%emt 0:00:20]} e6 {[%emt 0:00:08]} 5. Be2 {[%emt 0:00:26]} Be7 {[%emt 0:00:19]} 6. Nh4 {[%emt 0:00:40] A06: Réti Opening: 1 Nf3 d5.} Bg6 {[%emt 0:00:19]} 7. O-O {[%emt 0:00:11]} c6 {[%emt 0:00:20]} (7... c5 $11 {is more appropriate.}) 8. d3 {[%emt 0:01:48] White is slightly better.} O-O {[%emt 0:01:48]} 9. Nd2 {[%emt 0:00:22] [#]} Qc7 $146 {[%emt 0:02:44]} ({Predecessor:} 9... Nbd7 10. Nxg6 hxg6 11. f4 Nh7 12. e4 Qb6+ 13. Kh1 dxe4 14. dxe4 Ndf6 15. Bf3 Rfd8 {1-0 Cakl,Z (2136)-Mraz,P (1785) Liberec op 10th 2009 (1)}) 10. Nxg6 {[%emt 0:00:06]} (10. c4 {looks sharper.} Ng4 11. Bxg4 Bxh4 12. Nf3) 10... hxg6 {[%emt 0:00:07]} 11. c4 {[%emt 0:00:27]} Rd8 {[%emt 0:01:22]} 12. Qc2 {[%emt 0:00:13]} a5 {[%emt 0:02:20]} 13. a3 {[%emt 0:00:33]} Nbd7 {[%emt 0:02:30]} 14. Rfd1 {[%emt 0:00:41]} Rac8 {[%emt 0:02:12]} 15. Rac1 {[%emt 0:00:10]} Qb8 {[%emt 0:04:21]} 16. Qb1 {[%emt 0:00:34]} Nc5 {[%emt 0:08:53]} 17. Bc3 {[%emt 0:03:51]} Qa8 {[%emt 0:09:14]} 18. Bb2 {[%emt 0:07:58]} Qb8 $1 {[%emt 0:00:49]} 19. h3 {[%emt 0:00:28]} Qa8 {[%emt 0:04:00]} 20. Bc3 {[%emt 0:00:24]} b5 {[%emt 0:07:40]} 21. cxb5 {[%emt 0:05:10]} cxb5 {[%emt 0:00:18]} 22. Qb2 {[%emt 0:01:31]} b4 {[%emt 0:04:10]} 23. Bxf6 {[%emt 0:01:42]} (23. Bd4 $142) 23... Bxf6 {[%emt 0:03:05]} 24. d4 {[%emt 0:00:20]} Qb7 {[%emt 0:10:26]} 25. a4 {[%emt 0:00:08]} (25. Rxc5 $2 {perishes.} Rxc5 26. axb4 axb4 $19) 25... Nd7 {[%emt 0:01:41]} 26. Bb5 {[%emt 0:00:08]} Be7 {[%emt 0:08:04]} 27. Bxd7 {[%emt 0:09:21]} Rxd7 {[%emt 0:00:25]} 28. Rxc8+ {[%emt 0:00:13]} Qxc8 {[%emt 0:00:06]} 29. Rc1 {[%emt 1:06:24]} Rc7 {[%emt 0:19:29]} 30. Rxc7 {[%emt 0:00:00]} Qxc7 $11 {[%emt 0:00:00][%mdl 4096] Endgame KQB-KQN} 31. Nf3 {[%emt 0:01:00]} Bd6 {[%emt 0:01:00]} 32. Kf1 {[%emt 0:00:00]} Qc6 {[%emt 0:00:00]} 33. Ke1 {[%emt 0:00:00]} Kf8 {[%emt 0:00:00]} 34. Kd2 {[%emt 0:00:00]} Qa6 {[%emt 0:00:00]} 35. Qc1 {[%emt 0:00:00] Prevents Qf1} Ke7 {[%emt 0:00:00]} 36. Qd1 {[%emt 0:00:00]} Kd8 {[%emt 0:00:00]} 37. Qe2 {[%emt 0:00:00]} Qc6 {[%emt 0:00:00]} 38. Qd3 {[%emt 0:00:00] Dodges Qc3+} Ke7 {[%emt 0:00:00]} 39. Ne1 {[%emt 0:00:00]} Kd7 {[%emt 0:00:00]} 40. Qc2 {[%emt 0:00:00]} Qxc2+ {[%emt 0:00:00]} 41. Kxc2 {[%emt 0:00:00] KB-KN} Kc6 {[%emt 0:00:00]} 42. Nd3 {[%emt 0:00:00]} f6 {[%emt 0:00:00]} 43. f4 {[%emt 0:06:00]} Kd7 {[%emt 0:00:00]} 44. Kd2 {[%emt 0:00:30]} Bf8 {[%emt 0:00:00]} 45. Ke2 {[%emt 0:00:00]} Bd6 {[%emt 0:00:00]} 46. Kf3 {[%emt 0:00:00]} Ke7 {[%emt 0:00:00]} 47. g4 {[%emt 0:00:00]} f5 {[%emt 0:02:12]} 48. h4 {[%emt 0:00:00]} ({White should play} 48. Ne1 $14) 48... Kf6 {[%emt 0:02:22]} 49. h5 $2 {[%emt 0:00:00][%mdl 8192]} (49. g5+ $11 Ke7 50. Kg3) 49... gxh5 $2 {[%emt 0:00:22]} (49... fxg4+ $19 50. Kxg4 gxh5+ 51. Kh4 (51. Kxh5 $2 {too greedy.} Kf5 $19) 51... g6) 50. gxh5 {[%emt 0:00:00]} g5 {[%emt 0:02:27]} 51. fxg5+ {[%emt 0:00:00]} Kxg5 {[%emt 0:00:02]} 52. Nc5 {[%emt 0:00:00]} e5 {[%emt 0:00:25]} 53. Ne6+ $1 {[%emt 0:00:00]} Kxh5 {[%emt 0:00:32]} 54. dxe5 {[%emt 0:00:00]} Bxe5 {[%emt 0:00:02]} 55. Nd8 $1 {[%emt 0:00:00]} Kg5 {[%emt 0:01:36]} 56. Nc6 {[%emt 0:00:00][%csl LRa5,LRe5]} Bc7 {[%emt 0:00:26]} 57. Ne7 {[%emt 0:00:00]} Bh2 {[%emt 0:01:53]} 58. Nxd5 {[%emt 0:00:00]} Kg6 {[%emt 0:00:24]} 59. e4 {[%emt 0:00:00]} Bb8 $2 {[%emt 0:00:46][%mdl 8192]} (59... Bg1 $16) 60. Nb6 $2 {[%emt 0:00:00]} (60. Ne7+ $18 Kf6 61. Nxf5) 60... Bc7 $1 {[%emt 0:00:23]} 61. Nd5 {[%emt 0:00:00]} Bd6 $2 {[%emt 0:00:26] [#]} (61... Bb8 $1 $11) 62. Ne3 $2 {[%emt 0:00:00]} (62. Ke3 $1 $18 {[%cal Re3d4]}) 62... f4 $1 {[%emt 0:00:38] The position is equal.} (62... fxe4+ 63. Kxe4 Kf6 64. Kd5 $18) 63. Nd5 {[%emt 0:00:00]} (63. Nc4 $5 Bc7 $8 64. Nb2 $11) 63... Kg5 {[%emt 0:00:21]} 64. Nb6 {[%emt 0:00:00]} Bc7 {[%emt 0:00:36]} 65. Nc4 {[%emt 0:00:00]} Bd8 {[%emt 0:00:32]} 66. Nb2 {[%emt 0:00:00]} (66. Nd6 $5 {[%cal Rd6f7]} Bc7 67. Nc4 $11 (67. e5 Bxd6 68. exd6 Kf6 $11)) 66... Bc7 {[%emt 0:00:28]} 67. Nd3 {[%emt 0:00:00]} Bb8 {[%emt 0:00:17]} 68. Nf2 {[%emt 0:00:00]} Kf6 {[%emt 0:00:34]} 69. Nd3 {[%emt 0:00:00]} Kg5 {[%emt 0:00:01]} 70. Nc5 {[%emt 0:00:00]} Bd6 {[%emt 0:00:33]} 71. Ne6+ {[%emt 0:00:00]} (71. Nb7 $5 Bc7 $8 72. Nc5 $11) 71... Kf6 {[%emt 0:00:00]} 72. Nxf4 {[%emt 0:00:00]} Ke5 {[%emt 0:00:03]} 73. Nd5 {[%emt 0:03:08] [#] Ke3 would be deadly.} Kd4 {[%emt 0:00:28]} 74. Ke2 {[%emt 0:01:53]} Kxe4 {[%emt 0:00:19]} 75. Nb6 $1 {[%emt 0:00:21]} Kd4 76. Kd2 {[%emt 0:00:30]} Bf4+ 77. Kc2 $1 {[%emt 0:00:30]} Bc7 78. Nc4 {[%emt 0:00:30]} Bd8 79. Nd2 {[%emt 0:00:30]} Ke3 80. Nc4+ {[%emt 0:00:30]} Ke2 81. Ne5 {[%emt 0:00:30]} Bc7 82. Nc4 {[%emt 0:00:30]} Bd8 {Weighted Error Value: White=0.32/Black=0.16 (very precise)} 1/2-1/2

[Event "28th Bosnjaci Open 2024"]
[Site "Bosnjaci"]
[Date "2024.01.09"]
[Round "9.17"]
[White "Vucenovic, Damian"]
[Black "Tomas, Ante"]
[Result "0-1"]
[ECO "B27"]
[WhiteElo "2193"]
[BlackElo "2014"]
[Annotator "TA"]
[PlyCount "144"]
[EventDate "2024.01.02"]
[EventType "swiss"]
[EventCountry "CRO"]
[SourceTitle "playchess.com"]
[Source "ChessBase"]
[SourceQuality "1"]
[TimeControl "5400+30"]

{[%evp 14,144,-1,-20,24,-64,24,-45,-52,-62,-50,-52,-53,-41,-47,-52,-42,-45,-43,-48,-21,-41,-16,-27,18,18,30,-17,18,12,20,16,16,-12,-12,-12,-19,-67,-51,-109,-21,-30,-25,-45,0,0,0,0,-6,-29,0,-240,-209,-633,-616,-638,-606,-725,-710,-1236,-1225,-1177,-1153,-1110,-1099,-1095,-985,-1104,-1112,-1104,-1069,-1104,-1104,-1094,-1091,-1072,-1069,-1241,-1180,-29970,-29967,-29966,-29969,-29966,-29968,-29968,-29969,-29969,-29970,-29969,-29969,-29943,-12148,-5226,-2562,-1239,-1202,-5318,-2607,-2194,-1978,-29981,-29982,-29982,-29980,-29980,-29980,-29980,0,-29980,-29981,-29982,-29983,-29982,-29983,-29984,-29981,-29980,-29981,-29981,-29976,-29973,-29972,-29969,-29956,-29982,-29982,-29984,-29985,-29992,-29993,-29997,-1377]} 1. e4 {[%emt 0:00:12]} c5 {[%emt 0:03:00]} 2. Nf3 {[%emt 0:00:32]} g6 {[%emt 0:00:07]} 3. c3 {[%emt 0:00:24]} Bg7 {[%emt 0:00:15]} 4. d4 {[%emt 0:00:20]} cxd4 {[%emt 0:00:07]} 5. cxd4 {[%emt 0:00:16]} d5 {[%emt 0:00:12]} 6. e5 {[%emt 0:02:09]} Bg4 {[%emt 0:05:00]} 7. Nc3 {[%emt 0:00:44]} Nc6 {[%emt 0:00:21]} 8. Be3 {[%emt 0:01:38]} Nh6 $1 {[%emt 0:00:15] The main line 8...Nh6 scores better than 8...e6. B27: Sicilian: 2 Nf3, unusual Black 2nd moves.} (8... e6 $5 {[%cal Rg8e7]}) 9. Qb3 {[%emt 0:02:04]} (9. h3 $11 Bxf3 10. Qxf3) 9... Qd7 {[%emt 0:28:47]} (9... O-O $1 $15) 10. Qxd5 {[%emt 0:02:03]} ({Much worse is} 10. Nxd5 Bxf3 11. gxf3 Rd8 $15) (10. Nh4 $11) 10... Qxd5 $15 {[%emt 0:02:19] Black is slightly better.} 11. Nxd5 {[%emt 0:00:05]} O-O-O {[%emt 0:00:58] [#] Inhibits Nc7.} 12. Nc3 $146 {[%emt 0:05:26]} ({Predecessor:} 12. Bxh6 Bxh6 13. Ne3 Bxf3 14. gxf3 Rxd4 15. Bh3+ Kb8 16. Ke2 Nxe5 17. Rad1 Rhd8 18. Rxd4 Rxd4 {0-1 Bartron,P (2292)-Rupel,D (2112) Washington State-ch Premier 2000}) 12... Bxf3 {[%emt 0:03:22]} 13. gxf3 {[%emt 0:00:53]} Nxd4 {[%emt 0:02:20]} 14. Rc1 {[%emt 0:04:01] Wards off Nc2+. Hoping for Bxd4.} Kb8 {[%emt 0:03:53]} ({Don't play} 14... Nxf3+ 15. Ke2 Nxe5 16. Nb5+ Kd7 17. Bg2 $11) 15. Bg2 {[%emt 0:02:53]} Nhf5 {[%emt 0:01:40] aiming for ...Nh4. Excellent horsemanship.} 16. f4 {[%emt 0:00:50]} Rd7 {[%emt 0:13:50]} 17. h4 {[%emt 0:11:04]} (17. Ne2 {is more complex.} Nh4 18. Be4 Ndf5 19. Rd1) 17... Rhd8 {[%emt 0:04:06]} 18. Ne4 {[%emt 0:04:19]} Nxe3 {[%emt 0:12:30]} 19. fxe3 {[%emt 0:01:46]} Nf5 {[%emt 0:00:01]} 20. Ke2 {[%emt 0:12:06]} (20. Bh3 $142) 20... h5 {[%emt 0:01:39]} (20... f6 $5 {[%cal Rf6e5]}) 21. Rc2 {[%emt 0:02:18]} Rd3 {[%emt 0:01:22]} 22. Rh3 {[%emt 0:45:27] Strongly threatening Nc5.} R3d7 $1 {[%emt 0:02:16]} 23. b4 {[%emt 0:00:00]} (23. Ng5 $5 {[%cal Rg5f7]}) 23... e6 {[%emt 0:01:12]} 24. Ng5 {[%emt 0:00:00]} Bh6 {[%emt 0:01:55]} 25. Ne4 {[%emt 0:00:00]} (25. Be4 $11) 25... Bf8 {[%emt 0:01:54] Black is more active.} 26. b5 {[%emt 0:00:00]} (26. Nc5 $1 $15 Rc7 27. Be4) 26... Be7 {[%emt 0:00:36]} ({Black should try} 26... Bb4 $1 $17) 27. Ng5 $1 $11 {[%emt 0:00:00]} Bxg5 {[%emt 0:03:59]} 28. hxg5 {[%emt 0:00:00]} Rc7 {[%emt 0:01:51]} (28... Rd1 {feels hotter.} 29. b6 axb6 30. e4 Ne7) 29. Rxc7 {[%emt 0:03:30]} Kxc7 {[%emt 0:05:13][%mdl 4096] Endgame KRB-KRN} 30. Be4 {[%emt 0:00:00]} Kb6 {[%emt 0:00:00]} 31. Kf3 {[%emt 0:00:00]} Kxb5 {[%emt 0:00:00]} 32. Bxb7 $2 {[%emt 0:00:00] [#] Black continues to play with concentration.} (32. Rh2 $11) 32... Rd3 $1 $19 {[%emt 0:00:00]} 33. Ke4 {[%emt 0:00:00]} (33. Ke2 Ra3 34. Be4) 33... Rd7 {[%emt 0:00:00]} 34. Ba8 {[%emt 0:00:00] [#]} Rd8 $1 {[%emt 0:00:00]} 35. Bb7 {[%emt 0:00:00]} Kb6 {[%emt 0:00:00]} 36. Rh2 {[%emt 0:00:00]} Kxb7 {[%emt 0:00:00] KRN-KR} 37. Rb2+ {[%emt 0:00:00]} Kc6 {[%emt 0:00:00]} 38. Rc2+ {[%emt 0:00:00]} Kb6 {[%emt 0:00:01]} 39. a4 {[%emt 0:00:00]} Rd7 {[%emt 0:00:36]} 40. Kf3 {[%emt 0:00:00]} Rd3 {[%emt 0:00:32]} 41. a5+ {[%emt 0:00:00]} Kb7 {[%emt 0:00:37] White must now prevent ...Nd4+.} 42. Rb2+ {[%emt 0:00:00]} Ka6 {[%emt 0:00:14]} 43. Rb8 {[%emt 0:00:00]} Rxe3+ {[%emt 0:00:10]} 44. Kg2 {[%emt 0:00:00]} Rc3 {[%emt 0:00:37]} 45. Rd8 {[%emt 0:00:00]} Rc7 {[%emt 0:00:14]} 46. Kh3 {[%emt 0:00:00]} Kxa5 {[%emt 0:00:14]} 47. Rd1 {[%emt 0:00:00]} a6 {[%emt 0:00:32]} 48. Rb1 {[%emt 0:00:00]} Ka4 {[%emt 0:00:59]} 49. Ra1+ {[%emt 0:00:00]} Kb5 {[%emt 0:00:06]} 50. Rb1+ {[%emt 0:00:00]} Kc6 {[%emt 0:00:11]} 51. Rc1+ {[%emt 0:00:00]} Kb6 {[%emt 0:00:02]} 52. Rb1+ {[%emt 0:00:00]} Ka7 {[%emt 0:00:08] ( -> ...a5)} 53. Ra1 {[%emt 0:00:00]} Rc3+ {[%emt 0:00:26]} 54. Kg2 {[%emt 0:00:00]} Rb3 {[%emt 0:00:21]} 55. Kh2 {[%emt 0:00:00]} Ne7 {[%emt 0:00:27]} 56. Rc1 {[%emt 0:00:00]} a5 {[%emt 0:00:25]} 57. f5 {[%emt 0:00:00]} Nxf5 {[%emt 0:07:08]} 58. Rc7+ {[%emt 0:00:00]} Rb7 {[%emt 0:00:00]} 59. Rc4 {[%emt 0:00:00]} Rb4 {[%emt 0:00:00]} 60. Rc7+ {[%emt 0:00:00]} Rb7 {[%emt 0:00:00]} 61. Rc4 {[%emt 0:00:00]} h4 {[%emt 0:00:00] Black mates.} 62. Kh3 {[%emt 0:00:00]} Rb3+ {[%emt 0:00:00]} 63. Kh2 {[%emt 0:00:00]} Ka6 {[%emt 0:00:00]} 64. Rc7 {[%emt 0:00:00]} Rb7 {[%emt 0:00:00]} 65. Rc8 {[%emt 0:00:00]} a4 {[%emt 0:00:00]} 66. Kh3 {[%emt 0:00:00]} a3 {[%emt 0:00:00]} 67. Rc3 {[%emt 0:00:00]} Rb5 {[%emt 0:00:00]} 68. Rxa3+ {[%emt 0:00:00]} Kb6 {[%emt 0:00:00]} 69. Kg4 {[%emt 0:00:00]} Rxe5 {[%emt 0:00:00]} 70. Kf4 {[%emt 0:00:00] [#]} Re3 $1 {[%emt 0:00:00]} 71. Rb3+ {[%emt 0:00:00]} (71. Rxe3 Nxe3) 71... Rxb3 {[%emt 0:00:00]} 72. Kg4 {[%emt 0:00:00]} h3 {[%emt 0:00:00] Weighted Error Value: White=0.56/Black=0.19 (very precise)} (72... Re3 $142 73. Kf4 e5+ 74. Kg4 Rg3#) 0-1

[Event "28th Bosnjaci Open 2024"]
[Site "Bosnjaci"]
[Date "2024.01.09"]
[Round "9.18"]
[White "Vidovic, Sasa"]
[Black "Ivancic, Ivan"]
[Result "1-0"]
[ECO "A01"]
[WhiteElo "2176"]
[BlackElo "2001"]
[Annotator "TA"]
[PlyCount "57"]
[EventDate "2024.01.02"]
[EventType "swiss"]
[EventCountry "CRO"]
[SourceTitle "playchess.com"]
[Source "ChessBase"]
[SourceQuality "1"]
[TimeControl "5400+30"]

{[%evp 10,57,5,12,0,5,8,17,4,0,18,9,43,43,44,55,59,66,62,42,165,161,161,161,149,148,132,83,178,171,197,190,192,192,189,193,247,240,264,169,216,209,289,174,229,245,229,221,229,228]} 1. b3 {[%emt 0:00:03]} e5 {[%emt 0:00:16]} 2. Bb2 {[%emt 0:00:04]} Nc6 {[%emt 0:00:09]} 3. e3 {[%emt 0:00:05]} d5 {[%emt 0:00:12]} 4. Bb5 {[%emt 0:04:15]} Bd6 {[%emt 0:00:16]} 5. Nf3 {[%emt 0:05:03]} f6 {[%emt 0:00:19]} 6. c4 {[%emt 0:18:07]} a6 {[%emt 0:01:44] A01: Nimzowitsch-Larsen Opening.} 7. Bxc6+ {[%emt 0:14:14] 7.Ba4 is the fancy move.} bxc6 {[%emt 0:00:11]} 8. Qc2 {[%emt 0:02:54]} Qd7 {[%emt 0:14:44] [#] The position is equal.} 9. d3 $146 {[%emt 0:09:23]} ({Predecessor:} 9. d4 e4 10. Ng1 f5 11. Ne2 a5 12. Ba3 Nf6 13. Bxd6 cxd6 14. Nd2 Ba6 15. O-O {½-½ Knoll,H (2439)-Loeschnauer,R (2469) AUT-chT13 email 2013}) 9... Bb4+ {[%emt 0:02:52]} 10. Bc3 {[%emt 0:06:37]} Bxc3+ {[%emt 0:04:02]} 11. Nxc3 {[%emt 0:02:19]} Ne7 {[%emt 0:02:04]} 12. Rc1 {[%emt 0:05:49]} Qg4 {[%emt 0:02:49]} 13. O-O {[%emt 0:04:06]} O-O {[%emt 0:04:40]} 14. Ne2 {[%emt 0:05:40]} e4 {[%emt 0:04:15]} ({Better is} 14... dxc4 $14 15. Qxc4+ Qxc4 16. Rxc4 a5) 15. dxe4 {[%emt 0:02:15]} dxe4 {[%emt 0:00:16]} 16. h3 {[%emt 0:01:20]} Qg6 {[%emt 0:42:40]} 17. Nf4 {[%emt 0:04:54]} Qf5 {[%emt 0:00:16]} 18. Nd2 {[%emt 0:03:04]} ({White should play} 18. g4 Qd7 19. Rcd1 (19. Qxe4 f5 $16)) 18... g5 {[%emt 0:17:45]} (18... Qe5 $16) 19. Ne2 $36 {[%emt 0:01:41][%mdl 2048] White has strong initiative.} (19. Qxe4 Qxe4 20. Nxe4 gxf4 21. exf4 Ng6 $17) 19... g4 {[%emt 0:00:00]} 20. Ng3 {[%emt 0:01:57]} (20. Nxe4 $6 gxh3 21. g3 Qf3 $16) 20... Qg6 {[%emt 0:00:00]} 21. hxg4 {[%emt 0:02:24]} ({Resist} 21. Ngxe4 $6 gxh3 22. g3 Bf5 $14) ({Much less strong is} 21. Qxe4 Qxe4 22. Ndxe4 (22. Ngxe4 gxh3 23. g3 Bg4 $16) 22... gxh3) (21. Ndxe4 gxh3 22. Qe2 Bg4 $11) 21... Bxg4 {[%emt 0:00:00]} 22. Qxe4 {[%emt 0:00:18]} Nf5 {[%emt 0:00:00]} (22... Rf7 $142 23. Qxg6+ hxg6) 23. Nxf5 {[%emt 0:00:45]} ({Don't do} 23. Qxc6 $6 Nxg3 24. fxg3 Rad8) 23... Bxf5 {[%emt 0:00:00]} 24. Qf4 {[%emt 0:00:24]} Kh8 {[%emt 0:00:00]} (24... Rad8 {might work better.}) 25. Nf3 {[%emt 0:01:31][%cal Bd2f3,Bf3h4,Bh4f3,Bf3e5][%mdl 32] [#] Nh4! is the strong threat.} Be6 {[%emt 0:00:00]} 26. Nh4 {[%emt 0:01:39]} Qg5 {[%emt 0:00:00]} (26... Qg4 {is a better defense.} 27. Rfe1 Rf7 28. Qxg4 Bxg4) 27. Qxg5 {[%emt 0:00:10]} fxg5 {[%emt 0:00:00]} 28. Nf3 {[%emt 0:00:04]} h6 {[%emt 0:00:00]} 29. Ne5 {[%emt 0:00:21] Weighted Error Value: White=0.16 (very precise) /Black=0.36} 1-0